lending/lending_fUSD_20250303
["ID","MTS","AMOUNT","RATE_DAILY","PERIOD"]
[355233052,1741031446721,-260.54931711,0.00014553,2]
[355233053,1741031446732,-500.0,0.00014553,2]
[355233054,1741031446742,-500.0,0.00014553,2]
[355233055,1741031446751,-500.0,0.00014553,2]
[355233056,1741031446761,-500.0,0.00014553,2]
[355233057,1741031446771,-495.39482633,0.00014553,2]
[355233058,1741031446780,-1076.74,0.00014553,2]
[355233059,1741031446789,-1786.11,0.00014553,2]
[355233060,1741031446799,-1412.68,0.00014553,2]
[355233061,1741031446808,-836.57,0.00014553,2]
[355233062,1741031446819,-500.0,0.00014553,2]
[355233063,1741031446830,-1790.96,0.00014553,2]
[355233064,1741031446840,-513.03,0.00014553,2]
[355233065,1741031446850,-1171.98,0.00014553,2]
[355233066,1741031446859,-500.0,0.00014553,2]
[355233067,1741031446869,-1003.76,0.00014553,2]
[355233068,1741031446880,-500.0,0.00014553,2]
[355233069,1741031446890,-1853.22,0.00014553,2]
[355233070,1741031446899,-1063.88,0.00014553,2]
[355233071,1741031446909,-1922.02,0.00014553,2]
[355233072,1741031446918,-943.45,0.00014553,2]
[355233073,1741031446927,-1983.37,0.00014553,2]
[355233074,1741031446937,-1459.1,0.00014553,2]
[355233075,1741031446948,-500.0,0.00014553,2]
[355233076,1741031446958,-1072.7,0.00014553,2]
[355233077,1741031446979,-882.72,0.00014553,2]
[355233078,1741031446996,-1465.31,0.00014553,2]
[355233079,1741031447016,-1607.38,0.00014553,2]
[355233080,1741031447037,-2221.21,0.00014553,2]
[355233081,1741031447052,-907.21,0.00014553,2]
[355233082,1741031447071,-1337.03,0.00014553,2]
[355233083,1741031447093,-1030.69,0.00014553,2]
[355233084,1741031447111,-1299.94,0.00014553,2]
[355233085,1741031447131,-500.0,0.00014553,2]
[355233086,1741031447149,-1855.52,0.00014553,2]
[355233087,1741031447167,-1961.28,0.00014553,2]
[355233088,1741031447184,-562.67,0.00014553,2]
[355233089,1741031447198,-1451.05,0.00014553,2]
[355233090,1741031447216,-1549.87,0.00014553,2]
[355233091,1741031447229,-500.0,0.00014553,2]
[355233092,1741031447248,-1171.98,0.00014553,2]
[355233093,1741031447261,-1136.91,0.00014553,2]
[355233094,1741031447277,-666.0,0.00014554,2]
[355233095,1741031447293,-151.0,0.00014554,2]
[355233096,1741031447310,-151.0,0.00014554,2]
[355233097,1741031447325,-151.0,0.00014554,2]
[355233098,1741031447343,-151.0,0.00014554,2]
[355233099,1741031447359,-151.0,0.00014554,2]
[355233100,1741031447375,-151.0,0.00014554,2]
[355233101,1741031447395,-151.0,0.00014554,2]
[355233102,1741031447411,-151.0,0.00014554,2]
[355233103,1741031447426,-151.0,0.00014554,2]
[355233104,1741031447442,-151.0,0.00014554,2]
[355233105,1741031447459,-151.0,0.00014554,2]
[355233106,1741031447475,-151.0,0.00014554,2]
[355233107,1741031447491,-151.0,0.00014554,2]
[355233108,1741031447507,-151.0,0.00014554,2]
[355233109,1741031447522,-151.0,0.00014554,2]
[355233110,1741031447538,-151.0,0.00014554,2]
[355233111,1741031447554,-151.0,0.00014554,2]
[355233112,1741031447570,-151.0,0.00014554,2]
[355233113,1741031447587,-151.0,0.00014554,2]
[355233114,1741031447605,-151.0,0.00014554,2]
[355233115,1741031447621,-151.0,0.00014554,2]
[355233116,1741031447640,-151.0,0.00014554,2]
[355233117,1741031447659,-151.0,0.00014554,2]
[355233118,1741031447676,-151.0,0.00014554,2]
[355233119,1741031447694,-151.0,0.00014554,2]
[355233120,1741031447709,-151.0,0.00014554,2]
[355233121,1741031447724,-151.0,0.00014554,2]
[355233122,1741031447752,-151.0,0.00014554,2]
[355233123,1741031447778,-151.0,0.00014554,2]
[355233124,1741031447801,-151.0,0.00014554,2]
[355233125,1741031447822,-151.0,0.00014554,2]
[355233126,1741031447844,-151.0,0.00014554,2]
[355233127,1741031447863,-151.0,0.00014554,2]
[355233128,1741031447882,-151.0,0.00014554,2]
[355233129,1741031447900,-151.0,0.00014554,2]
[355233130,1741031447918,-151.0,0.00014554,2]
[355233131,1741031447936,-151.0,0.00014554,2]
[355233132,1741031447953,-151.0,0.00014554,2]
[355233133,1741031447970,-151.0,0.00014554,2]
[355233134,1741031447985,-151.0,0.00014554,2]
[355233135,1741031448003,-151.0,0.00014554,2]
[355233136,1741031448020,-151.0,0.00014554,2]
[355233137,1741031448037,-151.0,0.00014554,2]
[355233138,1741031448056,-151.0,0.00014554,2]
[355233139,1741031448072,-151.0,0.00014554,2]
[355233140,1741031448092,-151.0,0.00014554,2]
[355233141,1741031448108,-151.0,0.00014554,2]
[355233142,1741031448125,-151.0,0.00014554,2]
[355233143,1741031448142,-151.0,0.00014554,2]
[355233144,1741031448159,-211.81267376,0.00014554,2]
[355233145,1741031448176,-10736.69977534,0.00014554,2]
[355233146,1741031448193,-500.0,0.00014554,2]
[355233147,1741031448210,-500.0,0.00014554,2]
[355233148,1741031448226,-500.0,0.00014554,2]
[355233149,1741031448243,-500.0,0.00014554,2]
[355233150,1741031448259,-692.46,0.00014554,2]
[355233151,1741031448277,-500.0,0.00014554,2]
[355233152,1741031448293,-500.0,0.00014554,2]
[355233153,1741031448310,-500.0,0.00014554,2]
[355233154,1741031448327,-500.0,0.00014554,2]
[355233155,1741031448344,-931.6,0.00014554,2]
[355233156,1741031448361,-500.0,0.00014554,2]
[355233157,1741031448377,-500.0,0.00014554,2]
[355233158,1741031448393,-618.16,0.00014554,2]
[355233159,1741031448409,-500.0,0.00014554,2]
[355233160,1741031448425,-500.0,0.00014554,2]
[355233161,1741031448441,-500.0,0.00014554,2]
[355233162,1741031448455,-500.0,0.00014554,2]
[355233163,1741031448465,-500.0,0.00014554,2]
[355233164,1741031448475,-500.0,0.00014554,2]
[355233165,1741031448485,-500.0,0.00014554,2]
[355233166,1741031448495,-500.0,0.00014554,2]
[355233167,1741031448505,-500.0,0.00014554,2]
[355233168,1741031448515,-500.0,0.00014554,2]
[355233169,1741031448526,-500.0,0.00014554,2]
[355233170,1741031448535,-500.0,0.00014554,2]
[355233171,1741031448864,-500.0,0.00014554,2]
[355233172,1741031448905,-500.0,0.00014554,2]
[355233173,1741031448925,-500.0,0.00014554,2]
[355233174,1741031448935,-513.81629982,0.00014554,2]
[355233175,1741031448945,-734.98,0.00014554,2]
[355233176,1741031448955,-506.22050034,0.00014554,2]
[355233177,1741031448965,-500.0,0.00014554,2]
[355233178,1741031448975,-605.27,0.00014554,2]
[355233179,1741031448986,-500.0,0.00014554,2]
[355233180,1741031448996,-500.0,0.00014554,2]
[355233181,1741031449006,-538.60817287,0.00014554,2]
[355233182,1741031449015,-500.0,0.00014554,2]
[355233183,1741031449026,-500.0,0.00014554,2]
[355233184,1741031449036,-897.52,0.00014554,2]
[355233185,1741031449046,-651.4,0.00014554,2]
[355233186,1741031449057,-500.0,0.00014554,2]
[355233187,1741031449067,-500.0,0.00014554,2]
[355233188,1741031449077,-500.0,0.00014554,2]
[355233189,1741031449088,-500.0,0.00014554,2]
[355233190,1741031449098,-500.0,0.00014554,2]
[355233191,1741031449108,-500.0,0.00014554,2]
[355233192,1741031449118,-500.0,0.00014554,2]
[355233193,1741031449127,-1076.48,0.00014554,2]
[355233194,1741031449137,-500.0,0.00014554,2]
[355233195,1741031449146,-500.0,0.00014554,2]
[355233196,1741031449156,-500.0,0.00014554,2]
[355233197,1741031449166,-500.0,0.00014554,2]
[355233198,1741031449175,-500.0,0.00014554,2]
[355233199,1741031449185,-500.0,0.00014554,2]
[355233200,1741031449195,-500.0,0.00014554,2]
[355233201,1741031449205,-500.0,0.00014554,2]
[355233202,1741031449215,-1136.93,0.00014554,2]
[355233203,1741031449224,-500.0,0.00014554,2]
[355233204,1741031449233,-500.0,0.00014554,2]
[355233205,1741031449243,-500.0,0.00014554,2]
[355233206,1741031449252,-500.0,0.00014554,2]
[355233207,1741031449262,-618.92,0.00014554,2]
[355233208,1741031449272,-814.57,0.00014554,2]
[355233209,1741031449281,-9357.58,0.00014554,2]
[355233210,1741031449292,-4645.81,0.00014554,2]
[355233211,1741031449301,-3717.0,0.00014555,2]
[355233212,1741031449311,-781.26368507,0.00014555,2]
[355233213,1741031449321,-1023896.22032757,0.00014555,2]
[355233214,1741031449332,-4219523.35446154,0.00014555,2]
[355233215,1741031449342,-151.0,0.00014555,2]
[355233216,1741031449352,-151.0,0.00014555,2]
[355233217,1741031449361,-151.0,0.00014555,2]
[355233218,1741031449372,-151.0,0.00014555,2]
[355233219,1741031449382,-151.0,0.00014555,2]
[355233220,1741031449391,-151.0,0.00014555,2]
[355233221,1741031449401,-151.661325,0.00014555,2]
[355233222,1741031449410,-206.113842,0.00014555,2]
[355233223,1741031449419,-151.0,0.00014555,2]
[355233224,1741031449430,-151.0,0.00014555,2]
[355233225,1741031449439,-206.113842,0.00014555,2]
[355233226,1741031449449,-151.0,0.00014555,2]
[355233227,1741031449458,-151.0,0.00014555,2]
[355233228,1741031449468,-151.0,0.00014555,2]
[355233229,1741031449477,-152.524675,0.00014555,2]
[355233230,1741031449486,-151.0,0.00014555,2]
[355233231,1741031449496,-151.354553,0.00014555,2]
[355233232,1741031449505,-151.0,0.00014555,2]
[355233233,1741031449515,-151.0,0.00014555,2]
[355233234,1741031449524,-151.0,0.00014555,2]
[355233235,1741031449533,-151.0,0.00014555,2]
[355233236,1741031449543,-744.926958,0.00014555,2]
[355233237,1741031449552,-744.926958,0.00014555,2]
[355233238,1741031449562,-744.926958,0.00014555,2]
[355233239,1741031449572,-744.926958,0.00014555,2]
[355233240,1741031449582,-151.0,0.00014555,2]
[355233241,1741031449591,-151.0,0.00014555,2]
[355233242,1741031449600,-151.0,0.00014555,2]
[355233243,1741031449609,-151.0,0.00014555,2]
[355233244,1741031449618,-151.0,0.00014555,2]
[355233245,1741031449627,-151.0,0.00014555,2]
[355233246,1741031449636,-151.0,0.00014555,2]
[355233247,1741031449646,-151.0,0.00014555,2]
[355233248,1741031449662,-151.0,0.00014555,2]
[355233249,1741031449672,-151.0,0.00014555,2]
[355233250,1741031449683,-151.0,0.00014555,2]
[355233251,1741031449693,-153.791644,0.00014555,2]
[355233252,1741031449702,-200.0,0.00014555,2]
[355233253,1741031449711,-151.0,0.00014555,2]
[355233254,1741031449721,-151.0,0.00014555,2]
[355233255,1741031449731,-230.197288,0.00014555,2]
[355233256,1741031449741,-151.0,0.00014555,2]
[355233257,1741031449750,-151.0,0.00014555,2]
[355233258,1741031449759,-230.197288,0.00014555,2]
[355233259,1741031449768,-151.0,0.00014555,2]
[355233260,1741031449777,-153.080493,0.00014555,2]
[355233261,1741031449786,-151.0,0.00014555,2]
[355233262,1741031449795,-151.0,0.00014555,2]
[355233263,1741031449805,-166.003401,0.00014555,2]
[355233264,1741031449815,-151.0,0.00014555,2]
[355233265,1741031449825,-151.0,0.00014555,2]
[355233266,1741031449836,-152.658691,0.00014555,2]
[355233267,1741031449846,-151.0,0.00014555,2]
[355233268,1741031449855,-151.0,0.00014555,2]
[355233269,1741031449864,-170.557826,0.00014555,2]
[355233270,1741031449874,-151.0,0.00014555,2]
[355233271,1741031449883,-170.557826,0.00014555,2]
[355233272,1741031449893,-151.0,0.00014555,2]
[355233273,1741031449903,-151.0,0.00014555,2]
[355233274,1741031449912,-658.649712,0.00014555,2]
[355233275,1741031449922,-658.649712,0.00014555,2]
[355233276,1741031449932,-151.0,0.00014555,2]
[355233277,1741031449942,-151.0,0.00014555,2]
[355233278,1741031449951,-151.0,0.00014555,2]
[355233279,1741031449961,-151.0,0.00014555,2]
[355233280,1741031449971,-151.0,0.00014555,2]
[355233281,1741031449981,-151.0,0.00014555,2]
[355233282,1741031449991,-151.234124,0.00014555,2]
[355233283,1741031450001,-151.0,0.00014555,2]
[355233284,1741031450011,-151.0,0.00014555,2]
[355233285,1741031450020,-151.0,0.00014555,2]
[355233286,1741031450030,-151.0,0.00014555,2]
[355233287,1741031450039,-151.0,0.00014555,2]
[355233288,1741031450048,-151.0,0.00014555,2]
[355233289,1741031450058,-232.783451,0.00014555,2]
[355233290,1741031450067,-232.783451,0.00014555,2]
[355233291,1741031450076,-151.0,0.00014555,2]
[355233292,1741031450088,-176.372472,0.00014555,2]
[355233293,1741031450098,-163.207363,0.00014555,2]
[355233294,1741031450108,-151.0,0.00014555,2]
[355233295,1741031450117,-151.0,0.00014555,2]
[355233296,1741031450127,-871.522224,0.00014555,2]
[355233297,1741031450136,-871.522224,0.00014555,2]
[355233298,1741031450145,-151.0,0.00014555,2]
[355233299,1741031450154,-151.0,0.00014555,2]
[355233300,1741031450164,-151.0,0.00014555,2]
[355233301,1741031450173,-151.0,0.00014555,2]
[355233302,1741031450183,-198.428092,0.00014555,2]
[355233303,1741031450191,-198.428092,0.00014555,2]
[355233304,1741031450201,-151.0,0.00014555,2]
[355233305,1741031450210,-151.0,0.00014555,2]
[355233306,1741031450220,-151.0,0.00014555,2]
[355233307,1741031450230,-151.483508,0.00014555,2]
[355233308,1741031450240,-151.0,0.00014555,2]
[355233309,1741031450251,-151.0,0.00014555,2]
[355233310,1741031450260,-151.343969,0.00014555,2]
[355233311,1741031450269,-151.0,0.00014555,2]
[355233312,1741031450278,-1498.08395,0.00014555,2]
[355233313,1741031450287,-151.0,0.00014555,2]
[355233314,1741031450297,-151.0,0.00014555,2]
[355233315,1741031450306,-1498.08395,0.00014555,2]
[355233316,1741031450315,-6147.116547,0.00014555,2]
[355233317,1741031450324,-155.7521,0.00014555,2]
[355233318,1741031450336,-6147.116547,0.00014555,2]
[355233319,1741031450345,-426.62751,0.00014555,2]
[355233320,1741031450354,-426.62751,0.00014555,2]
[355233321,1741031450364,-700.0,0.00014555,2]
[355233322,1741031450373,-155.78767783,0.00014573,2]
[355233323,1741031450383,-500.0,0.00014573,2]
[355233324,1741031450394,-160.03389867,0.00014573,2]
[355233325,1741031450404,-421.99068683,0.00014574,2]
[355233326,1741031450414,-407.32465281,0.00014574,2]
[355233327,1741031450424,-1034.37,0.00014587,2]
[355233328,1741031450434,-1004.0384,0.00014599,2]
[355233329,1741031450443,-22688.20617,0.000146,2]
[355233330,1741031450453,-421.99068683,0.00014614,2]
[355233331,1741031450464,-2101.633361,0.00014634,2]
[355233332,1741031450474,-421.99068683,0.00014653,2]
[355233333,1741031450485,-1034.37,0.00014666,2]
[355233334,1741031450494,-2000.0,0.00014668,2]
[355233335,1741031450504,-500.0,0.00014668,2]
[355233336,1741031450513,-180.178422,0.00014693,2]
[355233337,1741031450523,-421.99068683,0.00014693,2]
[355233338,1741031450533,-407.32465281,0.00014693,2]
[355233339,1741031450543,-151.0,0.00014698,2]
[355233340,1741031450552,-151.0,0.00014698,2]
[355233341,1741031450562,-151.0,0.00014698,2]
[355233342,1741031450572,-206.113842,0.00014698,2]
[355233343,1741031450584,-151.0,0.00014698,2]
[355233344,1741031450594,-206.113842,0.00014698,2]
[355233345,1741031450604,-151.0,0.00014698,2]
[355233346,1741031450614,-151.0,0.00014698,2]
[355233347,1741031450624,-151.0,0.00014698,2]
[355233348,1741031450634,-151.0,0.00014698,2]
[355233349,1741031450646,-224.981961,0.00014698,2]
[355233350,1741031450657,-9492.62802031,0.00014698,2]
[355233351,1741031450667,-1000.0,0.00014699,2]
[355233352,1741031450676,-245.688,0.00014699,2]
[355233353,1741031450686,-245.688,0.00014699,2]
[355233354,1741031450696,-245.688,0.00014699,2]
[355233355,1741031450706,-245.688,0.00014699,2]
[355233356,1741031450715,-245.688,0.00014699,2]
[355233357,1741031450725,-245.688,0.00014699,2]
[355233358,1741031450735,-245.688,0.00014699,2]
[355233359,1741031450745,-245.688,0.00014699,2]
[355233360,1741031450755,-245.688,0.00014699,2]
[355233361,1741031450764,-245.688,0.00014699,2]
[355233362,1741031450773,-1000.0,0.000147,2]
[355233363,1741031450783,-1000.0,0.000147,2]
[355233364,1741031450792,-1000.0,0.000147,2]
[355233365,1741031450801,-3745.6607695,0.000147,2]
[355233366,1741031450810,-44275.39771121,0.000147,2]
[355233367,1741031451286,-4181.08409594,0.000147,2]
[355233368,1741031451729,-3016.1,0.00014551,2]
[355233369,1741031451738,-77762.11284517,0.000147,2]
[355233370,1741031451747,-1128.8420778,0.000147,2]
[355233371,1741031451756,-1024.47440764,0.000147,2]
[355233372,1741031451765,-744.926958,0.000147,2]
[355233373,1741031451775,-744.926958,0.000147,2]
[355233374,1741031451784,-200.0,0.00014701,2]
[355233375,1741031451793,-362003.26948575,0.00014701,2]
[355233376,1741031451802,-165.62,0.00014704,2]
[355233377,1741031451812,-918.71281143,0.00014707,2]
[355233378,1741031451821,-42229.90862616,0.00014713,2]
[355233379,1741031451831,-200.0,0.00014715,2]
[355233380,1741031451841,-9492.6280203,0.00014716,2]
[355233381,1741031451851,-1436.57812258,0.00014721,2]
[355233382,1741031451860,-44093.79290039,0.00014724,2]
[355233383,1741031451870,-918.71281143,0.00014724,2]
[355233384,1741031451879,-200.0,0.00014724,2]
[355233385,1741031451888,-9492.6280203,0.00014726,2]
[355233386,1741031451898,-1000.0,0.00014726,2]
[355233387,1741031451907,-29105.66790199,0.00014729,2]
[355233388,1741031451916,-106433.22821787,0.00014733,2]
[355233389,1741031451926,-106433.22821787,0.00014733,2]
[355233390,1741031451935,-200.0,0.00014734,2]
[355233391,1741031451944,-362003.26948575,0.00014734,2]
[355233392,1741031451953,-9492.62802031,0.00014735,2]
[355233393,1741031451962,-362003.26948575,0.00014735,2]
[355233394,1741031451972,-1436.57812258,0.00014736,2]
[355233395,1741031451981,-29105.66790199,0.00014739,2]
[355233396,1741031451991,-44093.79290039,0.0001474,2]
[355233397,1741031452000,-500.0,0.0001474,2]
[355233398,1741031452010,-9492.62802031,0.00014741,2]
[355233399,1741031452019,-2031.0,0.00014743,2]
[355233400,1741031452031,-1277.0,0.00014743,2]
[355233401,1741031452040,-152.319,0.00014743,2]
[355233402,1741031452050,-640.0,0.00014743,2]
[355233403,1741031452059,-570.0,0.00014743,2]
[355233404,1741031452068,-151.904,0.00014743,2]
[355233405,1741031452078,-1583.0,0.00014743,2]
[355233406,1741031452088,-786.0,0.00014743,2]
[355233407,1741031452098,-1269.0,0.00014743,2]
[355233408,1741031452107,-1427.537,0.00014743,2]
[355233409,1741031452116,-907.0,0.00014743,2]
[355233410,1741031452125,-573.495,0.00014743,2]
[355233411,1741031452134,-4040.0,0.00014743,2]
[355233412,1741031452144,-150.0,0.00014743,2]
[355233413,1741031452153,-1011.0,0.00014743,2]
[355233414,1741031452162,-3928.0,0.00014743,2]
[355233415,1741031452171,-168.454,0.00014743,2]
[355233416,1741031452180,-1233.563,0.00014743,2]
[355233417,1741031452190,-151.880993,0.00014743,2]
[355233418,1741031452200,-151.0,0.00014743,2]
[355233419,1741031452209,-152.503784,0.00014743,2]
[355233420,1741031452219,-10962.651956,0.00014744,2]
[355233421,1741031452228,-1034.37,0.00014744,2]
[355233422,1741031452237,-1000.0,0.00014746,2]
[355233423,1741031452246,-362003.26948575,0.00014748,2]
[355233424,1741031452255,-9793.98382043,0.00014749,2]
[355233425,1741031452290,-2223.06709943,0.00014749,2]
[355233426,1741031452302,-854.34743661,0.00014749,2]
[355233427,1741031452313,-328.58732648,0.00014749,2]
[355233428,1741031452324,-1308.815,0.00014749,2]
[355233429,1741031452344,-323.89992798,0.00014749,2]
[355233430,1741031452844,-1118.14136652,0.00014551,2]
[355233431,1741031452865,-112.73863348,0.00014551,2]
[355233432,1741031452875,-2123.98893972,0.00014749,2]
[355233433,1741031454811,-640.99429407,0.0001455,2]
[355233434,1741031454838,-6569.17807622,0.0001455,2]
[355233435,1741031454975,-2478.66298637,0.0001455,2]
[355233436,1741031455039,-2597.66115889,0.0001455,2]
[355233437,1741031455052,-425.38348445,0.0001455,2]
[355233438,1741031455062,-2664.07500675,0.00014749,2]
[355233439,1741031455075,-1128.5824374,0.00014749,2]
[355233440,1741031455093,-1161.16000048,0.00014749,2]
[355233441,1741031455104,-908.33817604,0.00014749,2]
[355233955,1741031627999,163.9,0.00014184,2]
[355233956,1741031697933,162.96,0.00011011,2]
[355233958,1741031790114,1010.7162,0.00014451,2]
[355233959,1741031796060,165.67,0.00013754,2]
[355233960,1741031796297,165.67,0.00014441,2]
[355233961,1741031827282,4918.187,0.0001445,2]
[355233962,1741031833187,338.9563,0.0001445,2]
[355233963,1741031846265,151.0503,0.00014451,2]
[355233964,1741031884469,2105.41265313,0.0001445,2]
[355233965,1741031889441,817.47754687,0.00014477,2]
[355233966,1741031889464,1287.93510617,0.00014477,2]
[355233967,1741031892560,400.43845672,0.00014451,2]
[355233968,1741031894464,2105.41265304,0.00014504,2]
[355233969,1741031897812,400.43845664,0.00014478,2]
[355233970,1741031902537,400.43845664,0.00014505,2]
[355233971,1741031970403,151.7,0.00013691,2]
[355233972,1741031970544,151.7,0.00013807,2]
[355233973,1741031970768,151.7,0.00013923,2]
[355233974,1741031970976,151.7,0.00014039,2]
[355233975,1741031971163,151.7,0.00014154,2]
[355233976,1741031971357,151.7,0.0001427,2]
[355233977,1741031971821,151.7,0.00014386,2]
[355233978,1741031971864,151.7,0.00014502,2]
[355233979,1741032135902,1000.0,0.00013685,2]
[355233980,1741032155931,3191.73687079,0.0001445,2]
[355233981,1741032155953,381.9676152,0.0001445,2]
[355233982,1741032160937,3573.70448594,0.00014499,2]
[355233983,1741032299759,250.0,0.00013,2]
[355233984,1741032312755,150.0,0.0001371,7]
[355233985,1741032313276,150.0,0.0001447,2]
[355233986,1741032331977,150.0,0.00014478,2]
[355233987,1741032332055,150.0,0.0001449,2]
[355234487,1741032374020,280.30691972,0.0001445,2]
[355234488,1741032379003,280.30691964,0.00014477,2]
[355234489,1741032384002,280.30691964,0.00014504,2]
[355234490,1741032389816,-280.30691964,0.00014531,2]
[355234491,1741032421027,-500.0,0.00014531,2]
[355235057,1741032481382,-50.0,0.00014531,2]
[355235058,1741032481405,-450.0,0.00014539,2]
[355235059,1741032484942,1473.7888572,0.00014449,2]
[355235060,1741032490223,1473.78885712,0.00014476,2]
[355235061,1741032494959,1405.82942554,0.00014503,2]
[355235062,1741032494990,67.95943158,0.00014503,2]
[355235063,1741032504982,250.0,0.00013699,2]
[355235064,1741032520783,571.69,0.00013692,2]
[355235065,1741032583369,2382.46965731,0.00014449,2]
[355235066,1741032588334,2382.46965729,0.00014498,2]
[355235095,1741032637507,-530.35817895,0.0001453,2]
[355235096,1741032637520,-863.47296699,0.0001453,2]
[355235097,1741032637675,-79.95771118,0.0001453,2]
[355235098,1741032637687,-150.0,0.00014535,2]
[355235099,1741032637697,-1139.30254875,0.00014539,2]
[355235100,1741032637707,-554.49129439,0.00014539,2]
[355235101,1741032637729,-522.39870561,0.00014539,2]
[355235102,1741032637739,-1076.89,0.0001454,2]
[355235103,1741032637748,-300.0,0.00014546,2]
[355235104,1741032637757,-491.51999006,0.00014547,2]
[355235105,1741032637769,-1890.94966723,0.00014547,2]
[355235106,1741032637779,-150.0,0.00014547,2]
[355235107,1741032637790,-1997.5,0.00014548,2]
[355235109,1741032637799,-1010.26233277,0.00014548,2]
[355235112,1741032637819,-1303.23766723,0.00014548,2]
[355235114,1741032637829,-1107.56233277,0.00014548,2]
[355235115,1741032637842,-782.55766723,0.00014548,2]
[355235117,1741032637851,-51.44233277,0.00014548,2]
[355235119,1741032637863,-868.822778,0.00014548,2]
[355235122,1741032637890,-257.84907559,0.00014548,2]
[355235123,1741032637904,-861.99,0.00014548,2]
[355235124,1741032637969,-432.21771,0.00014548,2]
[355235125,1741032637982,-137.80810364,0.00014548,2]
[355235126,1741032637992,-1498.68,0.00014548,2]
[355235127,1741032638001,-2886.01,0.00014548,2]
[355235128,1741032638016,-500.0,0.00014548,2]
[355235129,1741032638026,-500.0,0.00014548,2]
[355235130,1741032638036,-1345.04,0.00014548,2]
[355235131,1741032638045,-2700.93,0.00014548,2]
[355235132,1741032638056,-500.0,0.00014548,2]
[355235133,1741032638067,-839.28,0.00014548,2]
[355235134,1741032638076,-2210.31,0.00014548,2]
[355235135,1741032638087,-811.91,0.00014548,2]
[355235136,1741032638098,-1347.55,0.00014548,2]
[355235137,1741032638109,-1882.48189636,0.00014548,2]
[355235177,1741032638691,-158.05810364,0.00014548,2]
[355235178,1741032638701,-1654.8,0.00014548,2]
[355235179,1741032638711,-2110.06,0.00014548,2]
[355235180,1741032638720,-3226.59708506,0.00014548,2]
[355235181,1741032638731,-2089.28680814,0.00014548,2]
[355235182,1741032638742,-450.5461068,0.00014548,2]
[355235183,1741032638752,-102.96388598,0.00014548,2]
[355235184,1741032638763,-778.80611402,0.00014548,2]
[355235185,1741032638772,-1942.37,0.00014548,2]
[355235186,1741032638782,-832.92,0.00014548,2]
[355235187,1741032638792,-1609.07,0.00014548,2]
[355235188,1741032638802,-4214.04,0.00014548,2]
[355235189,1741032638813,-901.65,0.00014548,2]
[355235191,1741032638823,-2041.84,0.00014548,2]
[355235193,1741032638833,-1366.67,0.00014548,2]
[355235195,1741032638844,-871.7,0.00014548,2]
[355235197,1741032638854,-1616.48,0.00014548,2]
[355235198,1741032638864,-1818.86,0.00014548,2]
[355235201,1741032638874,-1021.26,0.00014548,2]
[355235222,1741032639092,-674.46,0.00014549,2]
[355235224,1741032639102,-500.0,0.00014549,2]
[355235226,1741032639113,-503.09862992,0.00014549,2]
[355235229,1741032639129,-500.0,0.00014549,2]
[355235230,1741032639139,-1579.74,0.00014549,2]
[355235232,1741032639148,-500.0,0.00014549,2]
[355235234,1741032639161,-751.5,0.00014549,2]
[355235236,1741032639170,-500.0,0.00014549,2]
[355235238,1741032639180,-834.32,0.00014549,2]